Cogmind - Beta 14 @@@ ROGUE MODE // 2024.08.31 @ 16:12:03 Player: THN-L0C Result: Destroyed self via exploding Z-Power Performance ------------- Evolutions (1) 500 Regions Visited (6) 1200 Robots Destroyed (50) 250 Value Destroyed (1324) 1324 Prototype IDs (8) 160 Alien Tech Used (0) 0 Bonus (1909) 1909 TOTAL SCORE: 5343 Bonus ------- High Alert Combat Kills 24 Follower Combat Kills 285 Met Imprinter 300 Was Imprinted 300 Destroyed Z-Imprinter 1000 Cogmind --------- Core Integrity 0/400 Matter 142/300 Energy 100/100 System Corruption 0% Temperature Cool (0) Movement Core (600) Ox11 Location -7/Deep Caves Parts ------- > --- POWER (1) -------- Zionite Light DM Reactor > --- PROPULSION (2) --- (None) > --- UTILITY (4) ------ Experimental Heat Sink Large Storage Unit Experimental Sensor Array Mobile Refinery Mk. CCLXVII > --- WEAPON (2) ------- (None) > --- INVENTORY (15) --- Reinforced Ion Engine Reinforced Ion Engine Reinforced Ion Engine Improved Treads Improved Treads Zionite Glidesys I High-capacity Storage Unit Large Matter Pod (150) Decoy Drone Bay (16/16) Hacking Drone Bay (1/1) Light Assault Rifle Light Assault Rifle Light Assault Rifle EMP Blaster Peak State ------------ > --- POWER ------------ Zionite Light DM Reactor > --- PROPULSION ------- Armored Huge Wheel > --- UTILITY ---------- Experimental Heat Sink Large Storage Unit Experimental Sensor Array Mobile Refinery Mk. CCLXVII > --- WEAPON ----------- Gauss Cannon Rocket Launcher > --- INVENTORY -------- Reinforced Ion Engine Reinforced Ion Engine Reinforced Ion Engine Improved Treads Improved Treads Xenon Bombardment Thruster High-capacity Storage Unit Large Matter Pod Decoy Drone Bay Hacking Drone Bay Light Assault Rifle Light Assault Rifle Light Assault Rifle EMP Blaster [Rating: 49] Favorites ----------- Power Reinforced Ion Engine Engine Reinforced Ion Engine Power Core Light Nuclear Core Reactor Zionite Light DM Reactor Propulsion Improved Aluminum Leg Treads Improved Treads Leg Improved Aluminum Leg Wheel Armored Huge Wheel Utility Large Storage Unit Device Experimental Sensor Array Storage Large Storage Unit Protection Utility Shielding Weapon Light Assault Rifle Energy Gun Small Laser Ballistic Gun Light Assault Rifle Ballistic Cannon Gauss Cannon Launcher Rocket Launcher Slashing Weapon Mining Claw Special Melee Weapon Datajack Build | -11 -10 -10 -9 -9 -7 -7 ------- Run | Yrd Mat Min Mat Min Zio Dee Slots Evolved 2 | . . . 2 . . . Power . | . . . . . . . Propulsion . | . . . . . . . Utility 2 | . . . 2 . . . Weapon . | . . . . . . . Parts Attached 57 | 7 12 7 13 5 10 3 Power 5 | 1 1 . 1 1 . 1 Engine 3 | 1 1 . 1 . . . Core 1 | . . . . 1 . . Reactor 1 | . . . . . . 1 Propulsion 11 | 2 4 . 4 . 1 . Treads 2 | . . . 2 . . . Leg 8 | 2 4 . 2 . . . Wheel 1 | . . . . . 1 . Hover . | . . . . . . . Flight . | . . . . . . . Utility 17 | 2 2 3 3 1 5 1 Device 9 | 1 1 . 1 1 4 1 Storage 2 | 1 1 . . . . . Processor . | . . . . . . . Hackware . | . . . . . . . Protection 6 | . . 3 2 . 1 . Artifact . | . . . . . . . Weapon 24 | 2 5 4 5 3 4 1 Energy Gun 1 | 1 . . . . . . Energy Cannon . | . . . . . . . Ballistic Gun 18 | 1 5 3 5 3 1 . Ballistic Cannon 1 | . . . . . 1 . Launcher 2 | . . . . . 1 1 Special Weapon . | . . . . . . . Impact Weapon . | . . . . . . . Slashing Weapon 1 | . . 1 . . . . Piercing Weapon . | . . . . . . . Special Melee Weapon 1 | . . . . . 1 . Unidentified Prototypes 6 | . . . . 1 3 2 Parts Lost 18 | . 4 . 7 2 . 5 Power 1 | . . . . . . 1 Propulsion 5 | . 2 . 2 . . 1 Utility 5 | . 1 . 2 1 . 1 Weapon 7 | . 1 . 3 1 . 2 Highest Loss Streak 6 | . 3 . 6 2 . 3 To Critical Strikes . | . . . . . . . Average Slot Usage (%) 94 | . 99 100 92 92 88 85 Engine 8 | . 14 14 11 6 . . Core 4 | . . . . 4 11 8 Treads 5 | . . . 2 22 7 . Leg 14 | . 27 28 19 . . . Wheel 2 | . . . . . 7 11 Device 12 | . 13 4 6 10 21 22 Storage 12 | . 14 14 11 11 11 11 Protection 9 | . . 9 20 15 8 9 Ballistic Gun 18 | . 22 22 21 21 10 8 Ballistic Cannon 1 | . . . . . 2 11 Slashing Weapon 1 | . . 5 . . . . Special Melee Weapon 1 | . . . . . 5 . Peak Build Rating 49 | 7 11 16 19 24 44 49 Average Rating 21 | 4 9 13 16 22 34 37 On Entrance 15 | . 7 11 16 14 23 37 Naked Turns . | . . . . . . . Heaviest Build 51 | 14 34 37 40 36 51 47 Greatest Support 46 | 20 26 26 46 46 46 28 Greatest Overweight (x) 1 | 1 1 1 1 . 1 1 Average Overweight (x) . | . . 1 . . . 1 Largest Inventory Capacity 15 | 8 15 15 15 15 15 15 Average Capacity 14 | 7 12 15 15 15 15 15 Most Carried 15 | . 12 15 15 15 15 15 Average Carried 13 | . 6 14 13 14 14 14 Final Capacity 15 | 8 15 15 15 15 15 15 Final Carried 15 | . 12 15 12 15 15 15 Class Distribution -------------------- 90% | Mutant 9% | Scavenger-Mutant Dominant Class ---------------- Mutant | -10/Materials Mutant | -10/Mines Mutant | -9/Materials Mutant | -9/Mines Mutant | -7/Zion Mutant | -7/Deep Caves Resources | -11 -10 -10 -9 -9 -7 -7 ----------- Run | Yrd Mat Min Mat Min Zio Dee Matter Collected 1354 | 104 442 198 372 116 115 7 Remotely . | . . . . . . . Salvage Created 1655 | 12 421 332 715 106 . 69 Parts 126 | 4 29 26 43 12 . 12 Haulers Intercepted . | . . . . . . . Recyclers Shooed . | . . . . . . . Parts Field Recycled . | . . . . . . . Retrieved Matter . | . . . . . . . Parts Self-Destructed 2 | . . . . . 2 . Prevented . | . . . . . . . Kills | -11 -10 -10 -9 -9 -7 -7 ------- Run | Yrd Mat Min Mat Min Zio Dee Combat Hostiles Destroyed 44 | . 11 7 18 6 . 2 Guns 42 | . 11 7 18 6 . . Cannons 1 | . . . . . . 1 AOE 1 | . . . . . . 1 Classes Destroyed 9 | 1 3 . 3 . . 2 Builder 1 | . . . 1 . . . Tunneler 3 | 1 . 2 . . . . Watcher 2 | . 1 . 1 . . . Swarmer 15 | . 2 3 4 6 . . Grunt 22 | . 9 4 9 . . . Duelist 2 | . . . 2 . . . Sentry 3 | . . . 3 . . . Z-Technician 2 | . . . . . . 2 Z-Light 2 | . . . . . . 2 Best Kill Streak 7 | 1 2 3 7 3 . 2 Combat Bots Only 7 | . 2 3 7 3 . 2 Max Kills in Single Turn 2 | 1 1 1 2 1 . 1 Gunslinging 1 | . . . 1 . . . Exploded 1 | . . . . . . 1 Melee . | . . . . . . . Uniques/NPCs Destroyed 1 | . . . . . . 1 Z-Imprinter (-7/Deep Caves) Combat | -11 -10 -10 -9 -9 -7 -7 -------- Run | Yrd Mat Min Mat Min Zio Dee Hostile Shots Fired 278 | . 65 36 118 35 . 24 Missed 73 | . 9 11 34 9 . 10 Damage Taken 2968 | . 718 231 1047 203 . 769 Core 516 | . 39 61 174 14 . 228 Absorbed by Shields . | . . . . . . . Redirected to Shielding 113 | . . . 75 10 . 28 Regen/Repaired (Parts) 19 | . . . . . 19 . Core Remaining (%) 80 | 100 . 60 . . . . Volleys Fired 150 | 1 43 20 54 22 . 10 Largest 2 | 2 2 2 2 2 . 2 Hottest 81 | 60 60 53 56 43 . 81 Shots Fired 285 | 2 85 40 106 32 . 20 Gun 266 | 2 85 40 106 32 . 1 Cannon 10 | . . . . . . 10 Launcher 9 | . . . . . . 9 Special . | . . . . . . . Kinetic 243 | 1 53 40 106 32 . 11 Thermal 33 | 1 32 . . . . . Explosive 9 | . . . . . . 9 Electromagnetic . | . . . . . . . Robot Hit Streak 14 | 1 12 14 13 5 . 4 Robot Miss Streak 5 | 1 3 2 5 3 . 3 Penetration Max . | . . . . . . . Secondary Targets 5 | . 1 2 2 . . . Max Gunslinging Chain 1 | . 1 1 1 . . . Shots Hit Robots 198 | 1 64 31 74 16 2 10 Core Hits 96 | 1 27 15 34 7 . 12 Critical Kills 2 | . . . . 2 . . Critical Parts Destroyed . | . . . . . . . Critical Strikes 3 | . . . . 2 . 1 Destroy 2 | . . . . 2 . . Blast 1 | . . . . . . 1 Melee Attacks 8 | . . 6 . . 2 . Impact . | . . . . . . . Slashing 6 | . . 6 . . . . Piercing . | . . . . . . . Sneak Attacks 3 | . . 1 . . 2 . Combat Hostiles . | . . . . . . . Follow-up Attacks . | . . . . . . . Damage Inflicted 2992 | 10 737 378 1118 181 . 568 Guns 2274 | 10 724 258 1095 181 . 6 Cannons 194 | . . . . . . 194 Explosions 368 | . . . . . . 368 Melee 91 | . . 91 . . . . Ramming 65 | . 13 29 23 . . . Kinetic 2154 | . 420 258 1095 181 . 200 Thermal 314 | 10 304 . . . . . Explosive 368 | . . . . . . 368 Electromagnetic . | . . . . . . . Impact . | . . . . . . . Slashing 91 | . . 91 . . . . Piercing . | . . . . . . . Highest Corruption 2 | . . . 2 2 2 . Average Corruption 2 | . . . 2 2 2 . Corruption Purged . | . . . . . . . Corruption Blocked . | . . . . . . . Effects 22 | . . . 4 17 1 . Message Errors 4 | . . . 1 2 1 . Matter Fused 4 | . . . . 4 . . Heat Flow Errors 5 | . . . 2 3 . . Energy Discharges 2 | . . . 1 1 . . Data Loss (minor) 1 | . . . . 1 . . Data Loss (major) 2 | . . . . 2 . . Misfires 3 | . . . . 3 . . Alerts 1 | . . . . 1 . . Overload Shots . | . . . . . . . Overflow Damage 161 | . . 41 . . . 120 Projectiles 2 | . . . . . . 2 Explosions 118 | . . . . . . 118 Melee 41 | . . 41 . . . . Knockbacks 1 | . . 1 . . . . Impact 1 | . . 1 . . . . Kinetic . | . . . . . . . Secondary . | . . . . . . . Self-Inflicted Damage 430 | . . . . . . 430 Shots 1 | . . . . . . 1 Rammed 1 | . . . . 1 . . Targets Rammed 11 | . 2 5 3 1 . . Kicked 10 | . 2 5 3 . . . Crushed . | . . . . . . . Highest Temperature 216 | . 202 3 163 216 . 70 Average Temperature 44 | . 66 2 18 66 . 31 Received Heat Transfer 1020 | . 447 51 396 . . 126 Siege Activations . | . . . . . . . Robots Corrupted . | . . . . . . . Combat Hostiles . | . . . . . . . Parts Fried . | . . . . . . . Impact Corruptions . | . . . . . . . Robots Melted . | . . . . . . . Combat Hostiles . | . . . . . . . Parts Melted . | . . . . . . . Heat Transferred 700 | 25 675 . . . . . Parts Sabotaged . | . . . . . . . Parts Stolen . | . . . . . . . Parts Stripped . | . . . . . . . Power Chain Reactions . | . . . . . . . Alert | -11 -10 -10 -9 -9 -7 -7 ------- Run | Yrd Mat Min Mat Min Zio Dee Peak Influence 449 | 5 309 112 449 266 . . Initial 151 | . 3 27 13 151 . . Average 117 | 3 135 43 264 129 . . Maximum Alert Level 2 | . 1 . 2 1 . . Low Security (%) 77 | 100 77 100 32 68 . . Level 1 19 | . 22 . 48 31 . . Level 2 2 | . . . 18 . . . Level 3 . | . . . . . . . Level 4 . | . . . . . . . Level 5 . | . . . . . . . High Security . | . . . . . . . Max Security . | . . . . . . . Squads Dispatched 5 | . 1 . 4 . . . Investigation 1 | . . . 1 . . . Extermination . | . . . . . . . Reinforcement 4 | . 1 . 3 . . . Assault . | . . . . . . . Garrison . | . . . . . . . Intercept . | . . . . . . . Searches Triggered . | . . . . . . . Construction Impeded . | . . . . . . . Haulers Reinforced . | . . . . . . . Active Scanning Responses . | . . . . . . . Cargo Convoy Interrupts . | . . . . . . . Stealth | -11 -10 -10 -9 -9 -7 -7 --------- Run | Yrd Mat Min Mat Min Zio Dee Distress Signals 5 | . 1 . 4 . . . Communications Jammed . | . . . . . . . Distress Signals . | . . . . . . . Times Spotted 87 | . 23 13 40 8 . 3 Peak Tracking Total 7 | . 3 3 7 3 . 3 Tactical Retreats 7 | . 3 1 1 2 . . Traps | -11 -10 -10 -9 -9 -7 -7 ------- Run | Yrd Mat Min Mat Min Zio Dee Traps Triggered 2 | . . . 2 . . . Indirectly . | . . . . . . . Trap Hack Attempts . | . . . . . . . Triggered . | . . . . . . . Disarmed . | . . . . . . . Reprogrammed . | . . . . . . . Reused . | . . . . . . . Traps Extracted . | . . . . . . . Installed . | . . . . . . . Triggered . | . . . . . . . Machines | -11 -10 -10 -9 -9 -7 -7 ---------- Run | Yrd Mat Min Mat Min Zio Dee Machines Disabled 2 | . . . . . . 2 Max in Single Turn 1 | . . . . . . 1 Machines Repaired . | . . . . . . . Machines Dismantled . | . . . . . . . Machines Sabotaged . | . . . . . . . Overloaded Fab Kills . | . . . . . . . Hacking | -11 -10 -10 -9 -9 -7 -7 --------- Run | Yrd Mat Min Mat Min Zio Dee Machines Accessed 10 | . 6 . 3 1 . . Terminals 9 | . 6 . 3 . . . Fabricators . | . . . . . . . Repair Stations . | . . . . . . . Recycling Units . | . . . . . . . Scanalyzers . | . . . . . . . Garrison Access . | . . . . . . . Total Hacks 32 | . 20 . 11 1 . . Successful 19 | . 12 . 6 1 . . Failed 13 | . 8 . 5 . . . Catastrophic 1 | . . . 1 . . . Database Lockouts . | . . . . . . . Manual 24 | . 13 . 7 . 4 . Terminals 31 | . 20 . 11 . . . Fabricators . | . . . . . . . Repair Stations . | . . . . . . . Recycling Units . | . . . . . . . Scanalyzers . | . . . . . . . Garrison Access . | . . . . . . . Terminal Hacks 8 | . 4 . 3 1 . . Robot Analysis 1 | . 1 . . . . . Prototype ID Bank 1 | . 1 . . . . . Open Door 1 | . . . . 1 . . Emergency Access Points 1 | . 1 . . . . . Unreport Threat 1 | . . . 1 . . . Hauler Manifests 1 | . 1 . . . . . Zone Layout 2 | . . . 2 . . . Fabricator Hacks . | . . . . . . . Repair Station Hacks . | . . . . . . . Recycling Unit Hacks . | . . . . . . . Scanalyzer . | . . . . . . . Garrison Access Hacks . | . . . . . . . Unauthorized Hacks 11 | . 8 . 3 . . . Terminals 11 | . 8 . 3 . . . Botnet 3 | . 3 . . . . . Skim 8 | . 5 . 3 . . . Fabricators . | . . . . . . . Repair Stations . | . . . . . . . Recycling Units . | . . . . . . . Scanalyzers . | . . . . . . . Garrison Access . | . . . . . . . Data Cores Recovered . | . . . . . . . Used . | . . . . . . . Hacking Detections 9 | . 6 . 3 . . . Full Trace Events . | . . . . . . . Feedback Events . | . . . . . . . Feedback Blocked . | . . . . . . . Robot Schematics Acquired 2 | . . . . . 2 . Robots Built . | . . . . . . . Authchips . | . . . . . . . Time . | . . . . . . . Total Robot Build Rating . | . . . . . . . Part Schematics Acquired 14 | . . . . . 14 . Parts Built . | . . . . . . . Authchips . | . . . . . . . Time . | . . . . . . . Total Part Build Rating . | . . . . . . . Parts Repaired . | . . . . . . . Time . | . . . . . . . Parts Recycled . | . . . . . . . Recycled Matter . | . . . . . . . Retrieved Matter . | . . . . . . . Retrieved Components . | . . . . . . . Parts Scanalyzed . | . . . . . . . Part Schematics Acquired . | . . . . . . . Parts Damaged . | . . . . . . . Bothacking | -11 -10 -10 -9 -9 -7 -7 ------------ Run | Yrd Mat Min Mat Min Zio Dee Used RIF Installer . | . . . . . . . Robots Hacked 2 | . . . . . 2 . Non-combat 2 | . . . . . 2 . Combat . | . . . . . . . Robot Hacks Applied 2 | . . . . . 2 . parse_system 2 | . . . . . 2 . Relay Couplers Released . | . . . . . . . Fabnet Peak Effective % . | . . . . . . . Robots Rewired . | . . . . . . . Allies Hacked . | . . . . . . . Hacks Repelled . | . . . . . . . Allies | -11 -10 -10 -9 -9 -7 -7 -------- Run | Yrd Mat Min Mat Min Zio Dee Total Allies 10 | . . 4 . . 6 . Largest Group 6 | . . 4 4 . 6 2 Highest-Rated Group 209 | . . 71 71 . 209 56 Highest-Rated Ally 41 | . . 31 31 . 41 31 Total Orders . | . . . . . . . Ally Attacks 95 | . . 12 67 . . 16 Total Damage 1152 | . . 164 745 . . 243 Kills 21 | . . 5 12 . . 4 Allies Corrupted . | . . . . . . . Allies Melted . | . . . . . . . Intel | -11 -10 -10 -9 -9 -7 -7 ------- Run | Yrd Mat Min Mat Min Zio Dee Robot Analysis Total 1 | . 1 . . . . . Derelict Logs Recovered 5 | . . 1 . 2 2 . Drone Launches . | . . . . . . . Drone Recoveries . | . . . . . . . Exploration | -11 -10 -10 -9 -9 -7 -7 ------------- Run | Yrd Mat Min Mat Min Zio Dee Turns Passed 7234 | 70 1151 1910 791 1033 1980 299 Spaces Moved 4131 | 41 622 795 324 599 1521 229 Core 4 | 4 . . . . . . Treads 1040 | . . . 44 599 397 . Legs 1734 | 37 622 795 280 . . . Wheels 1353 | . . . . . 1124 229 Hover . | . . . . . . . Flight . | . . . . . . . Fastest Speed 50 | 50 120 190 160 160 115 115 Average Speed 152 | 140 156 190 185 160 126 115 Slowest Speed 190 | 190 190 190 190 160 160 115 Overloaded Moves . | . . . . . . . Propulsion Burnouts . | . . . . . . . Robots Hopped . | . . . . . . . Cave-ins Triggered . | . . . . . . . Exploration Rate (%) 64 | 4 86 99 38 98 91 32 Regions Visited 6 Branch Regions 4 Pre-discovered Areas 7 | . 1 2 . 1 3 . Known Exits Taken 3 | . . 1 1 . 1 . Unknown Exits Taken 3 | 1 1 . . 1 . . Scrap Searched 6 | . . 1 . 1 4 . Spaces Dug 3 | . . 3 . . . . Terrain Destroyed 7 | . . 3 3 . . 1 Melee 3 | . . 3 . . . . Projectile 3 | . . . 3 . . . AOE 1 | . . . . . . 1 Terrain Rammed . | . . . . . . . Walls Destroyed . | . . . . . . . Machines Disabled . | . . . . . . . Actions | -11 -10 -10 -9 -9 -7 -7 --------- Run | Yrd Mat Min Mat Min Zio Dee Total 4780 | 48 715 1145 406 650 1572 244 Wait 377 | . 19 306 13 11 28 . Move 4125 | 40 621 794 323 598 1520 229 Hop . | . . . . . . . Pick Up 27 | . 13 4 . 4 5 1 Fast Attach 14 | 7 1 . 1 1 2 2 Attach 14 | . 3 . 7 1 3 . Detach . | . . . . . . . Swap 29 | . 8 7 5 3 5 1 Drop 20 | . 5 3 . 4 7 1 Fire 150 | 1 43 20 54 22 . 10 Melee 8 | . . 6 . . 2 . Ram . | . . . . . . . Kick 10 | . 2 5 3 . . . Crush 1 | . . . . 1 . . Escape Stasis . | . . . . . . . Rewire 5 | . . . . 5 . . Trap . | . . . . . . . Miscellaneous . | . . . . . . . Route ------- -11/Scrapyard -10/Materials (discovered 5 exits: *Mat x3 / [*Min] / Sub) -10/Mines (discovered 3 exits: *Mat x2 / *Sub) -9/Materials (discovered 3 exits: [*Mat] / *Min x2) -9/Mines (discovered 4 exits: [*Mat x2] / [*Exi] / *Zio) -7/Zion (discovered 2 exits: *Dee / [*Pro]) -7/Deep Caves History --------- Turn | Location | Event 44 | -11/Scrapyard | Discovered new exit (range 16) 71 | -11/Scrapyard | Entered Materials 318 | -10/Materials | Build established: Mutant 391 | -10/Materials | Discovered new exit (range 7) 520 | -10/Materials | Discovered new exit (range 3) 537 | -10/Materials | Discovered new exit (range 16) 661 | -10/Materials | Lost 3 parts (2n1u) 864 | -10/Materials | Discovered new exit (range 8) 896 | -10/Materials | Learned location of Mines (-9) 938 | -10/Materials | Learned 2 Storage zone layouts 969 | -10/Materials | Learned Storage emergency access door positions 989 | -10/Materials | Learned Storage stockpile data 997 | -10/Materials | Learned location of 2 exits from Mines 998 | -10/Materials | Identified exit to Subcaves 998 | -10/Materials | Learned location of 1 exit from Materials 1006 | -10/Materials | Learned 4 Recycling zone layouts 1023 | -10/Materials | Learned Storage trap positions 1052 | -10/Materials | Loaded intel: 25 non-interactive machine locations 1089 | -10/Materials | Loaded intel: 2 recycling unit locations 1222 | -10/Materials | Entered Mines 1223 | -10/Mines | Identified exit to Materials 1401 | -10/Mines | Excavation squad dispatched 1401 | -10/Mines | A large section of the Mines collapsed 1651 | -10/Mines | Excavation squad dispatched 1787 | -10/Mines | Joined a pair of Derelicts in attacking an 0b10 outpost 1901 | -10/Mines | Excavation squad dispatched 1985 | -10/Mines | Assisted by bots powering up and referring to "LRC-V3" 2035 | -10/Mines | Escorted by a lone wolf Derelict 2038 | -10/Mines | Learned location of Zion (-7) 2260 | -10/Mines | Learned location of Storage (-8) 2261 | -10/Mines | Discovered exit to Subcaves (range 13) 2692 | -10/Mines | A weapon hastily lodged in a ceiling crevice suddenly fell to the ground 2854 | -10/Mines | Found a damaged Exp. Sensor Array with a note attached 2859 | -10/Mines | Found Prototype Device 3132 | -10/Mines | Entered Materials 3132 | -9/Materials | Accompanied by 4 allies 3132 | -9/Materials | Evolved 2 slots: Utility x2 3133 | -9/Materials | Identified exit to Mines 3394 | -9/Materials | Lost 4 allies 3444 | -9/Materials | Discovered new exit (range 16) 3668 | -9/Materials | Discovered exit to Mines (range 12) 3674 | -9/Materials | Destroyed 7 combat bots 3679 | -9/Materials | Lost 6 parts (1n2u3w) 3923 | -9/Materials | Entered Mines 3929 | -9/Mines | Found the Drone Emporium 3945 | -9/Mines | Met a Derelict bent on vengeance 3945 | -9/Mines | Found Prototype Device 3957 | -9/Mines | Identified Exp. Sensor Array 4035 | -9/Mines | Build established: Scavenger-Mutant 4181 | -9/Mines | Found a hidden stash of uninstalled traps 4361 | -9/Mines | A Derelict revealed a hidden shortcut to a safe place 4391 | -9/Mines | Discovered new exit (range 7) 4482 | -9/Mines | Received a Rocket Launcher from a helpful Derelict 4530 | -9/Mines | Deemed a non-threat by the Exiles lab entrance 4530 | -9/Mines | Discovered new exit (range 5) 4607 | -9/Mines | Discovered new exit (range 8) 4678 | -9/Mines | Build established: Mutant 4956 | -9/Mines | Entered Zion 4974 | -7/Zion | Given A8's code to call for help 5033 | -7/Zion | System corruption cleaned by Quarantine Array 5070 | -7/Zion | Identified exit to Deep Caves 5081 | -7/Zion | Found Prototype Device 5081 | -7/Zion | Identified Mobile Refinery Mk. CCLXVII 5318 | -7/Zion | Discovered new exit (range 11) 5406 | -7/Zion | Learned location of Data Miner (-6) 5425 | -7/Zion | Given the Hacking Drone Bay 5429 | -7/Zion | Found Prototype Device 5624 | -7/Zion | Visited the Megawrench Repair Shop 6109 | -7/Zion | Gained Derelict followers 6295 | -7/Zion | Acquired unknown access codes intercepted by a Zionite 6436 | -7/Zion | Identified Hacking Drone Bay 6441 | -7/Zion | Identified Decoy Drone Bay 6580 | -7/Zion | Opened final containment barrier to the Deep Caves 6713 | -7/Zion | Met Imprinter 6738 | -7/Zion | Imprinted 6741 | -7/Zion | Declared Zion's savior 6899 | -7/Zion | Saw the warning signs outside the Deep Caves entrance 6936 | -7/Zion | Entered Deep Caves 6936 | -7/Deep Caves | Accompanied by 6 allies 7165 | -7/Deep Caves | Attacked by Z-Imprinter 7166 | -7/Deep Caves | Core integrity fell below 50% 7181 | -7/Deep Caves | Allies destroyed Z-Imprinter 7231 | -7/Deep Caves | Z-Facility disabled 7235 | -7/Deep Caves | Destroyed self via exploding Z-Power Last Messages --------------- 07192_ Destroyed Prototype Hover Unit. 07192_ Destroyed Prototype Protection. 07195_ LG-6RV(z) destroyed. 07204_ Acquired 7 matter. 07207_ Acquired Prototype Reactor. 07207_ Identified Zio. Light DM Reactor. 07210_ Acquired Prototype Device. 07210_ Identified Exp. Heat Sink. 07216_ Dropped Xenon Bombardment Thruster. 07217_ Acquired Prototype Hover Unit. 07231_ 0O-13X(o) destroyed. 07231_ Z7-U8R(o) destroyed. 07231_ Z-Facility disabled. 07235_ Z-Power explodes. 07235_ Rocket Launcher destroyed. 07235_ Destroyed Rocket Launcher. 07235_ Arm. Huge Wheel destroyed. 07235_ Destroyed Arm. Huge Wheel. 07235_ Gauss Cannon destroyed. 07235_ Destroyed Gauss Cannon. Map ----- +----------------------------------------------------+ | | | | | | | ?????????????????????????????????????????????????? | | ?????????????????????????????????????????????????? | | ?????????????????????? ?????????????????????????? | | ?????????????????????? ??????##????????????????? | | ????????????????????? #??### #??????######???? | | ????????????????????? ## # ????### ##??? | | ????????????????????? ##### #??? | | ???????????????????? #??? | | ???????????????????? #??? | | ??????????????????? ##??? | | ??????????????????? #???? | | ????????????????????"" ##??? | | ????????????????????"" #### | | ???????????????????""" | | ??????????????????"""" | | ??????????????????? | | ??????????????????"""" ## | | ??????????????????"""" ###? | | ?????????????????""""" ##??? | | ???????????????""""""" #???? | | ??????????????""" " " ##??? | | ???????????????"""%*%/ #??? | | ???????????" @ #??? | | ???????????" g #??? | | ???????????" = #??? | | ???????????" ! ##??? | | ???????????" #??? | | ???????????? / #??? | | ???????????? % ##??? | | ???????????? ##???? | | ????????????? ##???? | | ????????????? ##??? | | ?????????????? #??? | | ?????????????" #??? | | ?????????????"" ##??? | | ??????????????" /! #???? | | ????????????????""""""%= ##??? | | ????????????"""""""" %* #??? | | ??????????? ##?? | | ??????????? #?? | | ??????????? ##? | | ??????????? #? | | ??????????? #? | | ??????????? #? | | ??????????? ###"# #? | | ???????????? ###??##### #### #? | | ???????????? #?????????######??## ##? | +----------------------------------------------------+ Best States ------------- Heat Dissipation 54 Energy Generation 27 Energy Capacity 265 Matter Stores 300 Matter Capacity 300 Sight Range 16 Robot Scan Range 20 Terrain Scan Density 10 Armor Coverage 150 Propulsion Shielding 33 Utility Shielding 33 Evasion (%) 55 Recoil Reduction 2 Item Schematics ----------------- Xenon Bombardment Thruster | -7/Zion | Archive Adv. Melee Analysis Suite | -7/Zion | Archive Spear | -7/Zion | Archive Imp. Reaction Control System | -7/Zion | Archive Arc Projector | -7/Zion | Archive Adv. Signal Interpreter | -7/Zion | Archive Gatling Laser | -7/Zion | Archive Point Defense System | -7/Zion | Archive Imp. Thermal Shield | -7/Zion | Archive Hvy. Ion Cannon | -7/Zion | Archive Thermic Laser | -7/Zion | Archive Power Maul | -7/Zion | Archive Corruption Screen | -7/Zion | Archive Fusion Compressor | -7/Zion | Archive Robot Schematics ------------------ B-48 Gladiator | -7/Zion | Archive R-06 Scavenger | -7/Zion | Archive Fabricated ------------ Nothing Alien Tech Used ----------------- None Achievements -------------- Are We The Baddies? Signs Are For Wimps Challenges ------------ None Game ------ Seed SeismicTeleporterDiverter Manual? 0 Play Time 00:31:36 Cumulative 171.6 hours Start 2024.08.31 @ 15:35:48 End 2024.08.31 @ 16:12:03 Sessions 1 Manual Loads 0 Difficulty Rogue Special Mode None Game No. 131 Rogue 131 Adventurer 0 Explorer 0 Win Type - Total 1 Types 0/0/0/1/0/0/0/0/0 Lore% 62 Gallery% 70 Achievement% 52 Wizard Run 0 Options --------- Layout 2 ASCII 0 Keyboard 1 Movement Vi Keybinds 0 Fullscreen 1 Font 32/SmallcapsGlow Map View 77x44 Zoom Use 0% Tactical HUD 1 Map Filters NONE Filters NONE Steam 1 RUN: f0535263-d4d9-4e6f-80c8-143b21f31775